fUST/lending_fUST_20260308
["ID","MTS","AMOUNT","RATE_DAILY","PERIOD"]
[407924024,1772913916221,-35000.00000001,0.00036591,30]
[407924025,1772913916305,-300.7208804,0.00036591,120]
[407924026,1772913916388,-21900.97310468,0.00036591,66]
[407924027,1772913916473,-111322.18625989,0.00036591,30]
[407924028,1772913916553,-77426.67378623,0.00036591,30]
[407924029,1772913916634,-54314.56762671,0.00036591,60]
[407924030,1772913916715,-20127.62487046,0.00036591,30]
[407924031,1772913916795,-32457.72435239,0.00036591,30]
[407924032,1772913916876,-23357.39807195,0.00036591,30]
[407924033,1772913916958,-553034.9796789,0.00036591,45]
[407924034,1772913917038,-24234.2635005,0.00036591,30]
[407924035,1772913917120,-200.19008212,0.00036591,120]
[407924036,1772913917202,-83907.611993,0.00036591,120]
[407924037,1772913917285,-203.56362928,0.00036591,120]
[407924038,1772913917368,-323.44699374,0.00036591,120]
[407924039,1772913917451,-811.79098947,0.00036591,120]
[407924040,1772913917533,-242.43469052,0.00036591,120]
[407924041,1772913917779,-975.22059713,0.00036591,120]
[407924042,1772913917870,-811.79098947,0.00036591,120]
[407924043,1772913917967,-323.44699374,0.00036591,120]
[407924044,1772913918057,-975.22059713,0.00036591,120]
[407924045,1772913918141,-203.56362928,0.00036591,120]
[407924046,1772913918226,-811.79098947,0.00036591,120]
[407924047,1772913918309,-323.44699374,0.00036591,120]
[407924048,1772913918392,-975.22059713,0.00036591,120]
[407924049,1772913918476,-811.79098947,0.00036591,120]
[407924050,1772913918557,-975.22059713,0.00036591,120]
[407924051,1772913918640,-811.79098947,0.00036591,120]
[407924052,1772913918724,-811.79098947,0.00036591,120]
[407924053,1772913918807,-975.22059713,0.00036591,120]
[407924054,1772913918894,-811.79098947,0.00036591,120]
[407924055,1772913918977,-975.22059713,0.00036591,120]
[407924056,1772913919063,-811.79098947,0.00036591,120]
[407924057,1772913919148,-975.22059713,0.00036591,120]
[407924058,1772913919238,-811.79098947,0.00036591,120]
[407924059,1772913919324,-975.22059713,0.00036591,120]
[407924060,1772913919412,-811.79098947,0.00036591,120]
[407924061,1772913919496,-975.22059713,0.00036591,120]
[407924062,1772913919584,-811.79098947,0.00036591,120]
[407924063,1772913919670,-975.22059713,0.00036591,120]
[407924064,1772913919759,-811.79098947,0.00036591,120]
[407924065,1772913919843,-975.22059713,0.00036591,120]
[407924066,1772913919935,-811.79098947,0.00036591,120]
[407924067,1772913920019,-975.22059713,0.00036591,120]
[407924068,1772913920102,-975.22059713,0.00036591,120]
[407924069,1772913920186,-811.79098947,0.00036591,120]
[407924070,1772913920268,-975.22059713,0.00036591,120]
[407924071,1772913920354,-811.79098947,0.00036591,120]
[407924072,1772913920438,-975.22059713,0.00036591,120]
[407924073,1772913920523,-811.79098947,0.00036591,120]
[407924074,1772913920607,-975.22059713,0.00036591,120]
[407924075,1772913920692,-811.79098947,0.00036591,120]
[407924076,1772913920776,-975.22059713,0.00036591,120]
[407924077,1772913920860,-811.79098947,0.00036591,120]
[407924078,1772913920945,-975.22059713,0.00036591,120]
[407924079,1772913921027,-975.22059713,0.00036591,120]
[407924080,1772913921110,-975.22059713,0.00036591,120]
[407924081,1772913921193,-811.79098947,0.00036591,120]
[407924082,1772913921279,-811.79098947,0.00036591,120]
[407924083,1772913921363,-975.22059713,0.00036591,120]
[407924084,1772913921453,-811.79098947,0.00036591,120]
[407924085,1772913921548,-975.22059713,0.00036591,120]
[407924086,1772913921632,-811.79098947,0.00036591,120]
[407924087,1772913921715,-975.22059713,0.00036591,120]
[407924088,1772913921801,-811.79098947,0.00036591,120]
[407924089,1772913921886,-975.22059713,0.00036591,120]
[407924090,1772913921976,-811.79098947,0.00036591,120]
[407924091,1772913922059,-975.22059713,0.00036591,120]
[407924092,1772913922145,-811.79098947,0.00036591,120]
[407924093,1772913922229,-975.22059713,0.00036591,120]
[407924094,1772913922318,-811.79098947,0.00036591,120]
[407924095,1772913922403,-975.22059713,0.00036591,120]
[407924096,1772913922490,-975.22059713,0.00036591,120]
[407924097,1772913922589,-811.79098947,0.00036591,120]
[407924098,1772913922673,-811.79098947,0.00036591,120]
[407924099,1772913922756,-975.22059713,0.00036591,120]
[407924100,1772913922845,-811.79098947,0.00036591,120]
[407924101,1772913922930,-975.22059713,0.00036591,120]
[407924102,1772913923011,-811.79098947,0.00036591,120]
[407924103,1772913923091,-257.9181403,0.00036591,30]
[407924104,1772913923187,-405.46342104,0.00036591,30]
[407924105,1772913923284,-366.7122334,0.00036591,120]
[407924106,1772913923369,-500.0,0.00036591,120]
[407924107,1772913923452,-500.0,0.00036591,120]
[407924108,1772913923535,-500.0,0.00036591,120]
[407924109,1772913923625,-500.0,0.00036591,120]
[407924110,1772913923709,-500.0,0.00036591,120]
[407924111,1772913923792,-232.76111887,0.00036591,120]
[407924112,1772913923876,-214.84899971,0.00036591,120]
[407924113,1772913923960,-282.87441156,0.00036591,120]
[407924114,1772913924049,-196.49058728,0.00036591,120]
[407924115,1772913924135,-321.35867876,0.00036591,110]
[407924116,1772913924225,-166.8779576,0.00036591,120]
[407924117,1772913924311,-301.40523909,0.00036591,120]
[407924118,1772913924397,-214.84899971,0.00036591,120]
[407924119,1772913924483,-321.35867876,0.00036591,110]
[407924120,1772913924571,-196.49058728,0.00036591,120]
[407924121,1772913924657,-282.87441156,0.00036591,120]
[407924122,1772913924744,-166.8779576,0.00036591,120]
[407924123,1772913924829,-301.40523909,0.00036591,120]
[407924124,1772913924914,-214.84899971,0.00036591,120]
[407924125,1772913924997,-166.8779576,0.00036591,120]
[407924126,1772913925080,-321.35867876,0.00036591,110]
[407924127,1772913925167,-196.49058728,0.00036591,120]
[407924128,1772913925255,-282.87441156,0.00036591,120]
[407924129,1772913925342,-301.40523909,0.00036591,120]
[407924130,1772913925426,-301.40523909,0.00036591,120]
[407924131,1772913925511,-196.49058728,0.00036591,120]
[407924132,1772913925596,-166.8779576,0.00036591,120]
[407924133,1772913925680,-301.40523909,0.00036591,120]
[407924134,1772913925761,-196.49058728,0.00036591,120]
[407924135,1772913925845,-301.40523909,0.00036591,120]
[407924136,1772913925929,-196.49058728,0.00036591,120]
[407924137,1772913926013,-301.40523909,0.00036591,120]
[407924138,1772913926097,-196.49058728,0.00036591,120]
[407924139,1772913926183,-301.40523909,0.00036591,120]
[407924140,1772913926268,-196.49058727,0.00036591,120]
[407924141,1772913926353,-10000.0,0.00036591,31]
[407924142,1772913926438,-622.45,0.00036591,120]
[407924143,1772913926524,-622.45,0.00036591,120]
[407924144,1772913926607,-622.45,0.00036591,120]
[407924145,1772913926919,-622.45,0.00036591,120]
[407924146,1772913927001,-622.45,0.00036591,120]
[407924147,1772913927096,-622.45,0.00036591,120]
[407924148,1772913927194,-622.45,0.00036591,120]
[407924149,1772913927281,-622.45,0.00036591,120]
[407924150,1772913927368,-622.45,0.00036591,120]
[407924151,1772913927453,-622.45,0.00036591,120]
[407924152,1772913927534,-622.45,0.00036591,120]
[407924153,1772913927619,-622.45,0.00036591,120]
[407924154,1772913927703,-622.45,0.00036591,120]
[407924155,1772913927787,-622.45,0.00036591,120]
[407924156,1772913927869,-622.45,0.00036591,120]
[407924157,1772913927952,-622.45,0.00036591,120]
[407924158,1772913928035,-622.45,0.00036591,120]
[407924159,1772913928117,-622.45,0.00036591,120]
[407924160,1772913928201,-622.45,0.00036591,120]
[407924161,1772913928283,-622.45,0.00036591,120]
[407924162,1772913928368,-622.45,0.00036591,120]
[407924163,1772913928453,-622.45,0.00036591,120]
[407924164,1772913928542,-622.45,0.00036591,120]
[407924165,1772913928629,-622.54075042,0.00036591,120]
[407924166,1772913928712,-153.46357122,0.00036591,120]
[407924167,1772913928801,-166.8779576,0.00036591,120]
[407924168,1772913928886,-153.46357122,0.00036591,120]
[407924169,1772913928973,-153.46357122,0.00036591,120]
[407924170,1772913929055,-153.46357122,0.00036591,120]
[407924171,1772913929143,-153.46357122,0.00036591,120]
[407924172,1772913929230,-153.46357122,0.00036591,120]
[407924173,1772913929322,-153.46357122,0.00036591,120]
[407924174,1772913929410,-166.87795759,0.00036591,120]
[407924175,1772913929497,-1769.57348434,0.00036591,120]
[407924176,1772913929580,-1769.57348434,0.00036591,120]
[407924177,1772913929667,-1769.57348434,0.00036591,120]
[407924178,1772913929755,-1769.57348434,0.00036591,120]
[407924179,1772913929839,-1769.57348434,0.00036591,120]
[407924180,1772913929926,-1769.57348434,0.00036591,120]
[407924181,1772913930011,-1769.57348434,0.00036591,120]
[407924182,1772913930101,-1769.57348434,0.00036591,120]
[407924183,1772913930184,-1769.57348434,0.00036591,120]
[407924184,1772913930269,-1769.57348434,0.00036591,120]
[407924185,1772913930352,-1769.57348434,0.00036591,120]
[407924186,1772913930434,-1769.57348434,0.00036591,120]
[407924187,1772913930518,-1769.57348434,0.00036591,120]
[407924188,1772913930600,-1769.57348434,0.00036591,120]
[407924189,1772913930680,-1769.57348434,0.00036591,120]
[407924190,1772913930760,-1769.57348434,0.00036591,120]
[407924191,1772913930842,-1769.57348434,0.00036591,120]
[407924192,1772913930923,-1769.57348434,0.00036591,120]
[407924193,1772913931005,-1769.57348434,0.00036591,120]
[407924194,1772913931087,-1769.57348434,0.00036591,120]
[407924195,1772913931170,-1769.57348434,0.00036591,120]
[407924196,1772913931254,-1769.57348434,0.00036591,120]
[407924197,1772913931337,-1769.57348434,0.00036591,120]
[407924198,1772913931420,-1769.57348434,0.00036591,120]
[407924199,1772913931505,-1769.57348434,0.00036591,120]
[407924200,1772913931589,-1769.57348434,0.00036591,120]
[407924201,1772913931678,-1769.57348434,0.00036591,120]
[407924202,1772913931761,-1769.57348434,0.00036591,120]
[407924203,1772913931846,-1769.57348434,0.00036591,120]
[407924204,1772913931931,-1769.57348434,0.00036591,120]
[407924205,1772913932015,-1769.57348434,0.00036591,120]
[407924206,1772913932099,-1769.57348434,0.00036591,120]
[407924207,1772913932206,-1769.57348434,0.00036591,120]
[407924208,1772913932311,-1769.57348434,0.00036591,120]
[407924209,1772913932397,-1769.57348434,0.00036591,120]
[407924210,1772913932484,-1769.57348434,0.00036591,120]
[407924211,1772913932570,-1769.57348434,0.00036591,120]
[407924212,1772913932657,-1769.57348434,0.00036591,120]
[407924213,1772913932745,-1769.57348434,0.00036591,120]
[407924214,1772913932829,-1769.57348434,0.00036591,120]
[407924215,1772913932911,-1769.57348434,0.00036591,120]
[407924216,1772913932993,-1769.57348434,0.00036591,120]
[407924217,1772913933074,-1769.57348434,0.00036591,120]
[407924218,1772913933153,-1769.57348434,0.00036591,120]
[407924219,1772913933236,-1769.57348434,0.00036591,120]
[407924220,1772913933321,-1262.77706072,0.00036591,120]
[407924222,1772914029773,5000.0,0.000114,120]
[407924223,1772914051939,5000.0,0.000114,120]
[407924227,1772914073937,5000.0,0.000114,120]
[407924297,1772914236418,-2500.54569496,3.403e-05,2]
[407924336,1772914238745,-2499.45430504,3.403e-05,2]
[407924337,1772914238756,-1522.591887,3.437e-05,2]
[407924338,1772914238767,-1200.0,3.581e-05,2]
[407924339,1772914238777,-1522.591887,3.582e-05,2]
[407924340,1772914238791,-1522.591887,3.726e-05,2]
[407924341,1772914238806,-189.0,3.87e-05,2]
[407924342,1772914238816,-300.0,3.87e-05,2]
[407924343,1772914238827,-300.0,3.87e-05,2]
[407924344,1772914238837,-300.0,3.87e-05,2]
[407924345,1772914238847,-1522.591887,3.871e-05,2]
[407924346,1772914238856,-52101.05128538,3.9e-05,2]
[407924388,1772914242691,-5446.64401774,3.861e-05,2]
[407924533,1772914243966,-5901.0959687,3.861e-05,2]
[407924536,1772914243977,-115728.42385476,3.9e-05,2]
[407924540,1772914243992,-4158.82046408,3.9e-05,2]
[407924542,1772914244005,-729.67770619,3.9e-05,2]
[407924544,1772914244019,-15378.57774659,3.9e-05,2]
[407924668,1772914246455,-3071.39409852,3.822e-05,2]
[407924669,1772914246468,-1928.60590148,3.822e-05,2]
[407924670,1772914246478,-1771.18931704,3.9e-05,2]
[407924673,1772914246511,-6727.02566785,3.9e-05,2]
[407924690,1772915424983,-745.722173,2.767e-05,2]
[407924709,1772915431528,-367.38335282,2.767e-05,2]
[407924712,1772915431539,-673.41,2.767e-05,2]
[407924714,1772915431551,-642.94887831,2.767e-05,2]
[407924718,1772915431588,-1125.98825827,2.767e-05,2]
[407924720,1772915431601,-1444.5473376,2.767e-05,2]
[407924721,1772915431610,-666.8624171,2.823e-05,2]
[407924723,1772915431620,-250.0,2.897e-05,2]
[407924726,1772915431630,-204.50234356,3.206e-05,2]
[407924727,1772915431640,-209.00159562,3.661e-05,2]
[407924729,1772915431649,-180.0,3.699e-05,2]
[407924731,1772915431658,-300.0,3.699e-05,2]
[407924733,1772915431667,-1200.0,3.699e-05,2]
[407924735,1772915431676,-76860.93699943,3.7e-05,2]
[407924737,1772915431688,-5988.60812158,3.7e-05,2]
[407924739,1772915431699,-6148.68833818,3.7e-05,2]
[407924878,1772915437984,-1152.14854256,3.7e-05,2]
[407924879,1772915437996,-1711.63564043,3.7e-05,2]
[407924880,1772915438007,-3096.06153313,3.7e-05,2]
[407924881,1772915438018,-1321.8647845,3.7e-05,2]
[407924915,1772915440245,-398.00552291,3.663e-05,2]
[407924922,1772915440300,-25954.71754075,3.663e-05,2]
[407925143,1772915443011,-4635.35155661,3.663e-05,2]
[407925145,1772915443023,-4640.01197933,3.663e-05,2]
[407925147,1772915443034,-11900.50929992,3.663e-05,2]
[407925151,1772915443067,-435.0,3.663e-05,2]
[407925238,1772915445643,-1608.24619972,3.663e-05,2]
[407925268,1772916631713,-443.28749891,2.273e-05,2]
[407925270,1772916631723,-482.04881605,2.296e-05,2]
[407925272,1772916631734,-1259.96848479,2.296e-05,2]
[407925274,1772916631746,-1415.29810358,2.296e-05,2]
[407925277,1772916631757,-1842.68459558,2.296e-05,2]
[407925279,1772916631767,-302.73848456,2.319e-05,2]
[407925281,1772916631776,-204.97277973,2.431e-05,2]
[407925283,1772916631785,-507.530629,2.502e-05,2]
[407925285,1772916631795,-507.530629,2.607e-05,2]
[407925287,1772916631804,-168.254576,2.674e-05,2]
[407925289,1772916631814,-59.63116299,2.712e-05,2]
[407925505,1772916637945,-447.89946601,2.712e-05,2]
[407925508,1772916637955,-1200.0,2.817e-05,2]
[407925510,1772916637964,-507.530629,2.818e-05,2]
[407925512,1772916637973,-507.530629,2.923e-05,2]
[407925514,1772916637983,-507.530629,3.028e-05,2]
[407925515,1772916637993,-300.0,3.088e-05,2]
[407925517,1772916638003,-300.0,3.088e-05,2]
[407925519,1772916638013,-300.0,3.088e-05,2]
[407925521,1772916638022,-300.0,3.088e-05,2]
[407925522,1772916638032,-300.0,3.088e-05,2]
[407925523,1772916638041,-300.0,3.088e-05,2]
[407925525,1772916638050,-300.0,3.088e-05,2]
[407925526,1772916638059,-300.0,3.088e-05,2]
[407925527,1772916638068,-300.0,3.088e-05,2]
[407925528,1772916638078,-300.0,3.088e-05,2]
[407925529,1772916638087,-300.0,3.088e-05,2]
[407925530,1772916638097,-300.0,3.088e-05,2]
[407925531,1772916638106,-300.0,3.088e-05,2]
[407925532,1772916638116,-300.0,3.088e-05,2]
[407925533,1772916638125,-300.0,3.088e-05,2]
[407925534,1772916638134,-1200.0,3.098e-05,2]
[407925535,1772916638153,-300.0,3.398e-05,2]
[407925536,1772916638163,-5016.20682251,3.4e-05,3]
[407925537,1772916638172,-9931.7212521,3.4e-05,3]
[407925538,1772916638182,-12320.53813856,3.4e-05,3]
[407925539,1772916638192,-600.0,3.467e-05,2]
[407925540,1772916638202,-1116.41928518,3.527e-05,2]
[407925541,1772916638211,-12369.0,3.662e-05,2]
[407925542,1772916638220,-86803.49912543,3.663e-05,2]
[407925543,1772916638263,-1577.58650617,3.663e-05,2]
[407925568,1772916642948,-2077.82054874,2.685e-05,2]
[407925569,1772916642958,-2373.50210801,3.663e-05,2]
[407925570,1772916642967,-2064.02692646,3.663e-05,2]
[407925571,1772916642977,-2520.65292011,3.663e-05,2]
[407925572,1772916642986,-420.0,3.738e-05,2]
[407925573,1772916642995,-1957.856,3.741e-05,2]
[407925574,1772916643004,-162.380719,3.741e-05,2]
[407925575,1772916643014,-168.3888056,3.741e-05,2]
[407925576,1772916643023,-174.61919141,3.741e-05,2]
[407925577,1772916643032,-181.08010149,3.741e-05,2]
[407925578,1772916643041,-187.78006525,3.741e-05,2]
[407925579,1772916643050,-194.72792766,3.741e-05,2]
[407925580,1772916643060,-201.93286099,3.741e-05,2]
[407925581,1772916643069,-209.40437684,3.741e-05,2]
[407925582,1772916643078,-217.15233878,3.741e-05,2]
[407925583,1772916643087,-225.18697532,3.741e-05,2]
[407925584,1772916643097,-233.51889341,3.741e-05,2]
[407925585,1772916643107,-242.15909246,3.741e-05,2]
[407925586,1772916643117,-251.11897888,3.741e-05,2]
[407925587,1772916643127,-260.4103811,3.741e-05,2]
[407925588,1772916643136,-270.0455652,3.741e-05,2]
[407925589,1772916643145,-280.03725112,3.741e-05,2]
[407925590,1772916643155,-290.39862941,3.741e-05,2]
[407925591,1772916643164,-301.1433787,3.741e-05,2]
[407925592,1772916643173,-2030.296672,3.796e-05,2]
[407925593,1772916643183,-720.0,3.814e-05,2]
[407925594,1772916643192,-2105.41764886,3.851e-05,2]
[407925595,1772916643201,-2183.31810187,3.906e-05,2]
[407925596,1772916643211,-2264.10087164,3.961e-05,2]
[407925597,1772916643220,-2347.87260389,4.016e-05,2]
[407925598,1772916643229,-2434.74389024,4.071e-05,2]
[407925599,1772916643239,-226.0,4.112e-05,2]
[407925600,1772916643248,-132.71995304,4.126e-05,2]
[407925601,1772916643260,-2107.64814455,4.126e-05,2]
[407925602,1772916643271,-284.46131658,4.126e-05,2]
[407925603,1772916643280,-375.65101742,4.181e-05,2]
[407925604,1772916643296,-1015.2315684,4.181e-05,2]
[407925605,1772916643306,-292.40880062,4.195e-05,2]
[407925607,1772916645801,-571.59119938,4.195e-05,2]
[407925608,1772916645811,-527.0,4.25e-05,2]
[407925609,1772916645822,-469.5,4.282e-05,2]
[407925610,1772916645832,-500.0,4.353e-05,2]
[407925611,1772916645841,-500.0,4.353e-05,2]
[407925612,1772916645850,-500.0,4.353e-05,2]
[407925613,1772916645859,-500.0,4.353e-05,2]
[407925614,1772916645868,-162.380719,4.353e-05,2]
[407925615,1772916645876,-500.0,4.353e-05,2]
[407925616,1772916645885,-168.3888056,4.353e-05,2]
[407925617,1772916645894,-500.0,4.353e-05,2]
[407925618,1772916645904,-174.61919141,4.353e-05,2]
[407925619,1772916645912,-500.0,4.353e-05,2]
[407925620,1772916645921,-181.08010149,4.353e-05,2]
[407925621,1772916645930,-500.0,4.353e-05,2]
[407925622,1772916645939,-187.78006525,4.353e-05,2]
[407925623,1772916645948,-500.0,4.353e-05,2]
[407925624,1772916645958,-194.72792766,4.353e-05,2]
[407925625,1772916645967,-500.0,4.353e-05,2]
[407925626,1772916645976,-201.93286099,4.353e-05,2]
[407925627,1772916645985,-500.0,4.353e-05,2]
[407925628,1772916645994,-209.40437684,4.353e-05,2]
[407925629,1772916646003,-500.0,4.353e-05,2]
[407925630,1772916646011,-217.15233878,4.353e-05,2]
[407925631,1772916646020,-500.0,4.353e-05,2]
[407925632,1772916646029,-225.18697532,4.353e-05,2]
[407925633,1772916646039,-500.0,4.353e-05,2]
[407925634,1772916646048,-233.51889341,4.353e-05,2]
[407925635,1772916646057,-500.0,4.353e-05,2]
[407925636,1772916646068,-242.15909246,4.353e-05,2]
[407925637,1772916646077,-500.0,4.353e-05,2]
[407925638,1772916646086,-251.11897888,4.353e-05,2]
[407925639,1772916646095,-500.0,4.353e-05,2]
[407925640,1772916646104,-260.4103811,4.353e-05,2]
[407925648,1772916646466,-270.0455652,4.353e-05,2]
[407925653,1772916646502,-280.03725112,4.353e-05,2]
[407925655,1772916646511,-290.39862941,4.353e-05,2]
[407925657,1772916646520,-83.153005,4.353e-05,2]
[407925659,1772916646532,-217.9903737,4.353e-05,2]
[407925660,1772916646541,-2150.738,4.353e-05,2]
[407925661,1772916646551,-500.0,4.353e-05,2]
[407925662,1772916646560,-250.0,4.353e-05,2]
[407925663,1772916646570,-250.0,4.353e-05,2]
[407925664,1772916646579,-250.0,4.353e-05,2]
[407925665,1772916646588,-250.0,4.353e-05,2]
[407925666,1772916646597,-250.0,4.353e-05,2]
[407925667,1772916646605,-250.0,4.353e-05,2]
[407925668,1772916646614,-250.0,4.353e-05,2]
[407925669,1772916646624,-250.0,4.353e-05,2]
[407925670,1772916646632,-250.0,4.353e-05,2]
[407925671,1772916646643,-250.0,4.353e-05,2]
[407925672,1772916646654,-250.0,4.353e-05,2]
[407925673,1772916646663,-250.0,4.353e-05,2]
[407925674,1772916646672,-250.0,4.353e-05,2]
[407925675,1772916646683,-250.0,4.353e-05,2]
[407925676,1772916646692,-385.20316875,4.353e-05,2]
[407925677,1772916646701,-537.6845,4.353e-05,2]
[407925678,1772916646712,-55556.67311764,4.356e-05,2]
[407925679,1772916646725,-13316.08999997,4.356e-05,2]
[407925680,1772916646736,-251.2277259,4.356e-05,2]
[407925681,1772917203075,158.24,2e-05,2]
[407925682,1772917203590,158.24,2e-05,2]
[407925689,1772917668575,150.0,8.985e-05,30]
[407925690,1772917682080,150.0,8.979e-05,30]
[407925705,1772917831838,-670.94,3.644e-05,2]
[407925708,1772917831851,-222.63721269,3.644e-05,2]
[407925710,1772917831860,-759.50580475,3.681e-05,2]
[407925714,1772917831897,-4240.49419525,3.681e-05,2]
[407925715,1772917831907,-205.93513286,3.737e-05,2]
[407925716,1772917831916,-300.0,4.154e-05,2]
[407925717,1772917831925,-300.0,4.154e-05,2]
[407925718,1772917831934,-300.0,4.154e-05,2]
[407925719,1772917831943,-1200.0,4.154e-05,2]
[407925720,1772917831953,-300.0,4.154e-05,2]
[407925721,1772917831962,-43098.01483225,4.155e-05,2]
[407925722,1772917831973,-3165.78623235,4.155e-05,2]
[407925749,1772917838059,-5000.0,4.114e-05,2]
[407925751,1772917838069,-20272.07532455,4.155e-05,2]
[407925864,1772917843106,-1041.66666667,4.155e-05,2]
[407925865,1772917843117,-1801.41093038,4.155e-05,2]
[407925866,1772917843130,-49451.13363233,4.155e-05,2]
[407925886,1772917845959,-899.80034817,4e-05,2]
[407925887,1772917845970,-43482.72117991,4.155e-05,2]
[407925890,1772918402551,158.87,2e-05,2]
[407925891,1772918402917,158.87,2e-05,2]
[407925892,1772918403234,158.87,2e-05,2]
[407925893,1772918403510,158.87,2e-05,2]
[407925894,1772918412283,158.87,2e-05,2]
[407925895,1772918412580,158.87,2e-05,2]
[407925896,1772918412865,158.87,2e-05,2]
[407925897,1772918413808,158.87,2e-05,2]
[407925898,1772918414136,158.87,2e-05,2]
[407925899,1772918414457,158.87,2e-05,2]
[407925900,1772918414744,158.87,2e-05,2]
[407925907,1772919023878,-376.5556878,3.024e-05,2]
[407925908,1772919023897,-376.5556878,3.568e-05,2]
[407925909,1772919023908,-2618.13792133,3.568e-05,2]
[407925932,1772919032219,-514.5770704,3.568e-05,2]
[407925934,1772919032231,-1490.72932047,3.568e-05,2]
[407925936,1772919032240,-300.12214122,3.877e-05,2]
[407925938,1772919032249,-320.85731845,3.933e-05,2]
[407925940,1772919032259,-1200.0,3.953e-05,2]
[407925942,1772919032268,-300.0,3.954e-05,2]
[407925944,1772919032277,-300.0,3.954e-05,2]
[407925946,1772919032286,-300.0,3.954e-05,2]
[407925948,1772919032295,-300.0,3.954e-05,2]
[407925949,1772919032304,-5443.99329385,3.955e-05,2]
[407925951,1772919032315,-17434.85362885,3.955e-05,2]
[407925953,1772919032326,-7051.0,3.955e-05,2]
[407925958,1772919038322,-5000.0,3.916e-05,2]
[407925959,1772919038333,-210139.59876318,3.955e-05,2]
[407925960,1772919038345,-613.07671529,3.955e-05,2]
[407926039,1772919041128,-722.64428426,3.916e-05,2]
[407926041,1772919041141,-1219.40002256,3.916e-05,2]
[407926043,1772919041152,-493.45232631,3.916e-05,2]
[407926045,1772919041161,-568.23920638,3.955e-05,2]
[407926196,1772919043311,-1021.08288828,3.955e-05,2]
[407926197,1772919043323,-418.93857618,3.955e-05,2]
[407926199,1772919046143,-3104.1223386,3.8e-05,2]
[407926200,1772919046155,-366.0,3.8e-05,2]
[407926201,1772919046166,-1304.99327105,3.8e-05,2]
[407926202,1772919046175,-328012.08392167,3.955e-05,2]
[407926203,1772919046206,-12910.15621236,3.955e-05,2]
[407926204,1772919046269,-303.5565,3.916e-05,2]
[407926208,1772919481049,244.28,3.8e-06,2]
[407926210,1772919602476,159.74,2e-05,2]
[407926283,1772920238485,-4619.38968362,2.465e-05,2]
[407926285,1772920238498,-380.61031638,2.465e-05,2]
[407926287,1772920238508,-645.00389677,2.49e-05,2]
[407926289,1772920238517,-422.01020918,2.515e-05,2]
[407926529,1772920243483,-3671.06308459,2.515e-05,2]
[407926531,1772920243493,-1200.0,2.614e-05,2]
[407926533,1772920243502,-300.0,2.665e-05,2]
[407926535,1772920243511,-300.0,2.665e-05,2]
[407926537,1772920243521,-300.0,2.665e-05,2]
[407926539,1772920243530,-300.0,2.665e-05,2]
[407926541,1772920243540,-300.0,2.665e-05,2]
[407926543,1772920243550,-300.0,2.665e-05,2]
[407926545,1772920243560,-300.0,2.665e-05,2]
[407926547,1772920243569,-300.0,2.665e-05,2]
[407926549,1772920243578,-300.0,2.665e-05,2]
[407926551,1772920243588,-300.0,2.665e-05,2]
[407926553,1772920243598,-300.0,2.665e-05,2]
[407926556,1772920243608,-300.0,2.665e-05,2]
[407926558,1772920243617,-300.0,2.665e-05,2]
[407926560,1772920243627,-300.0,2.665e-05,2]
[407926562,1772920243636,-300.0,2.665e-05,2]
[407926563,1772920243644,-219.00111989,2.682e-05,2]
[407926566,1772920243654,-300.0,2.831e-05,2]
[407926568,1772920243664,-300.0,2.831e-05,2]
[407926570,1772920243673,-7738.58601421,2.834e-05,2]
[407926849,1772920246355,-2261.41398579,2.834e-05,2]
[407926851,1772920246364,-1237.66134117,2.875e-05,2]
[407927254,1772921284090,171.0,3.8e-06,2]
[407927281,1772921432496,-386.55333246,2.645e-05,2]
[407927283,1772921432508,-867.53430758,2.645e-05,2]
[407927461,1772921438555,-2897.83638261,2.645e-05,2]
[407927462,1772921438612,-789.29601842,2.645e-05,2]
[407927463,1772921438624,-58.77995893,2.645e-05,2]
[407927464,1772921438634,-215.68103867,2.686e-05,2]
[407927465,1772921438643,-75.5671133,2.698e-05,2]
[407927466,1772921438654,-634.54402178,2.698e-05,2]
[407927967,1772921444920,-489.88886492,2.698e-05,2]
[407927969,1772921444930,-300.0,2.699e-05,2]
[407927971,1772921444939,-324.26150819,2.7e-05,2]
[407928056,1772921446507,-1863.03158687,2.7e-05,2]
[407928057,1772921446567,-6743.32690494,2.7e-05,2]
[407928058,1772921446577,-250.0,2.769e-05,2]
[407928059,1772921446586,-203.0611873,2.79e-05,2]
[407928060,1772921446595,-300.0,2.845e-05,2]
[407928061,1772921446605,-300.0,2.845e-05,2]
[407928062,1772921446615,-300.0,2.845e-05,2]